fUSD/lending_fUSD_20241108
["ID","MTS","AMOUNT","RATE_DAILY","PERIOD"]
[341607644,1731025319712,-325.97,0.00025289,2]
[341607645,1731025319734,-2598.63,0.00025289,5]
[341607646,1731025319755,-150.99,0.00025289,2]
[341607647,1731025319779,-1573.0,0.0002543,2]
[341607648,1731025319801,-23900.0,0.00025431,2]
[341607649,1731025319823,-158.08,0.00025431,2]
[341607650,1731025319845,-158.08,0.00025445,2]
[341607651,1731025319868,-158.08,0.0002546,2]
[341607652,1731025319889,-170.33,0.00025463,2]
[341607653,1731025319911,-158.08,0.00025475,2]
[341607654,1731025319933,-158.08,0.0002549,2]
[341607655,1731025319954,-200.0,0.00025496,2]
[341607656,1731025319976,-158.08,0.00025505,2]
[341607657,1731025319998,-158.08,0.0002552,2]
[341607658,1731025320021,-158.08,0.00025535,2]
[341607659,1731025320042,-158.08,0.0002555,2]
[341607660,1731025320064,-158.08,0.00025565,2]
[341607661,1731025320086,-158.08,0.0002558,2]
[341607662,1731025320108,-158.08,0.00025595,2]
[341607663,1731025320131,-158.08,0.0002561,2]
[341607664,1731025320154,-872.0,0.00025613,2]
[341607665,1731025320180,-1828.13,0.00025616,2]
[341607666,1731025320204,-158.08,0.00025625,2]
[341607667,1731025320227,-158.08,0.0002564,2]
[341607668,1731025320251,-157.19,0.00025649,30]
[341607669,1731025320275,-158.08,0.00025655,2]
[341607670,1731025320298,-158.08,0.0002567,2]
[341607671,1731025320319,-158.08,0.00025685,2]
[341607672,1731025320341,-325.97,0.00025695,2]
[341607673,1731025320362,-320.28,0.00025867,2]
[341607674,1731025320383,-250.0,0.00025881,2]
[341607675,1731025320404,-500.0,0.0002589,7]
[341607676,1731025320425,-6236.66,0.00025933,2]
[341607679,1731025397849,-2221.0,0.00026027,2]
[341607680,1731025397872,-325.97,0.00026102,2]
[341607681,1731025397894,-500.0,0.00026164,7]
[341607682,1731025397915,-167.76,0.00026193,2]
[341607683,1731025397938,-292.37,0.00026254,120]
[341607684,1731025397960,-325.97,0.00026508,2]
[341607685,1731025397982,-2751.0,0.0002654,2]
[341607686,1731025398004,-37483.0,0.00026583,2]
[341607687,1731025398027,-4218.0,0.000267,2]
[341607688,1731025398050,-500.0,0.00026712,7]
[341607689,1731025398074,-325.97,0.00026914,2]
[341607690,1731025398099,-500.0,0.00026986,7]
[341607691,1731025403485,500.0,0.00026164,7]
[341607692,1731025404637,500.0,0.00026986,7]
[341607693,1731025422301,500.0,0.00026164,7]
[341607694,1731025428657,1127.14,0.00024528,2]
[341607695,1731025428881,1127.14,0.00026792,2]
[341607696,1731025443511,450.0,0.00021,2]
[341607697,1731025444589,500.0,0.00023,2]
[341607698,1731025445662,550.0,0.00025,2]
[341607699,1731025446736,600.0,0.00027,2]
[341607700,1731025447737,10000.0,0.000259,5]
[341607701,1731025458203,150.0,0.0002645,2]
[341607702,1731025466271,500.0,0.00026164,7]
[341607703,1731025467796,500.0,0.00026986,7]
[341607704,1731025472341,1015.0,0.00026006,2]
[341607705,1731025493423,1015.0,0.00024706,2]
[341607706,1731025508591,149220.743947,0.00016,2]
[341607707,1731025508615,8519.51,0.00016,2]
[341607708,1731025508634,10000.0,0.00016,2]
[341607709,1731025508655,10000.0,0.00016,2]
[341607710,1731025508679,10000.0,0.00016,2]
[341607711,1731025508699,10000.0,0.00016,2]
[341607712,1731025508718,10000.0,0.00016,2]
[341607713,1731025508738,10000.0,0.00016,2]
[341607714,1731025508758,10000.0,0.00016,2]
[341607715,1731025508778,10000.0,0.00016,2]
[341607716,1731025508797,10000.0,0.00016,2]
[341607717,1731025508817,10000.0,0.00016,2]
[341607718,1731025508837,10000.0,0.00016,2]
[341607719,1731025508856,10000.0,0.00016,2]
[341607720,1731025508876,10000.0,0.00016,2]
[341607722,1731025508896,10000.0,0.00016,2]
[341607723,1731025508919,10000.0,0.00016,2]
[341607724,1731025508940,10000.0,0.00016,2]
[341607725,1731025508966,365045.30118601,0.00016,2]
[341607732,1731025686733,95900.30720912,0.000145,3]
[341607735,1731025748139,-1015.0,0.0002347,2]
[341607744,1731025832142,-162.98,0.00025745,2]
[341607746,1731025832152,-250.0,0.00026141,2]
[341607747,1731025832162,-167.45508821,0.00026189,2]
[341607749,1731025832174,-76.21491179,0.00026189,2]
[341607751,1731025832183,-176.0,0.00026325,2]
[341607752,1731025832193,-162.98,0.00026325,2]
[341607753,1731025832202,-520.51,0.00026348,4]
[341607754,1731025832212,-165.46,0.00026364,2]
[341607755,1731025832221,-256.22,0.00026371,2]
[341607756,1731025832231,-200.0,0.00026377,2]
[341607757,1731025832241,-302.4,0.00026431,2]
[341607758,1731025832250,-157.19,0.00026458,30]
[341607759,1731025832260,-162.98,0.00026904,2]
[341607760,1731025832270,-418.67508821,0.00027097,2]
[341607761,1731025832290,-81.32491179,0.00027097,2]
[341607762,1731025832300,-439.34375193,0.00027097,2]
[341607763,1731025832315,-560.65624807,0.00027097,2]
[341607764,1731025832325,-66.54375193,0.00027194,2]
[341607765,1731025832337,-805.92219983,0.00027194,2]
[341607766,1731025832357,-298.68100845,0.00027194,2]
[341607767,1731025832369,-1328.85303979,0.00027194,2]
[341607768,1731025832380,-1314.66865468,0.00027196,2]
[341607769,1731025832390,-520.35627639,0.00027196,2]
[341607770,1731025832419,-1776.38906539,0.00027196,2]
[341607771,1731025832429,-273.02760285,0.00027197,2]
[341607772,1731025832440,-653.14777444,0.00027197,2]
[341607773,1731025832468,-2414.50062271,0.00027197,2]
[341607774,1731025832478,-5425.51908893,0.00027197,2]
[341607776,1731025836782,153.37,0.00015342,2]
[341607777,1731025837053,153.37,0.00023452,2]
[341607781,1731025837885,-812.61294901,0.00027097,2]
[341607782,1731025837894,-10132.65041107,0.00027197,2]
[341607783,1731025837904,-1000.0,0.00027197,2]
[341607784,1731025837913,-100000.0,0.00027197,2]
[341607785,1731025837926,-4666.65400559,0.00027197,2]
[341607786,1731025837935,-812.61294899,0.00027197,2]
[341607787,1731025837944,-150.110806,0.00027248,3]
[341607788,1731025837953,-500.0,0.00027293,2]
[341607789,1731025837963,-170.22652252,0.00027293,2]
[341607790,1731025837972,-500.0,0.00027293,2]
[341607791,1731025837981,-500.0,0.00027293,2]
[341607792,1731025837990,-500.0,0.00027293,2]
[341607793,1731025837999,-500.0,0.00027293,2]
[341607794,1731025838008,-500.0,0.00027293,2]
[341607795,1731025838017,-500.0,0.00027293,2]
[341607796,1731025838027,-184238.1394,0.00027294,2]
[341607797,1731025838036,-200.0,0.00027297,2]
[341607798,1731025838045,-346.28813082,0.00027297,2]
[341607799,1731025838054,-1000.0,0.000273,2]
[341607800,1731025838063,-1015.0,0.00027306,2]
[341607801,1731025838072,-150.110806,0.00027348,3]
[341607802,1731025838081,-500.0,0.00027373,2]
[341607803,1731025838090,-250.85025704,0.00027373,2]
[341607804,1731025838099,-500.0,0.00027373,2]
[341607805,1731025838108,-295.84460532,0.0002739,2]
[341607806,1731025838117,-500.0,0.00027397,2]
[341607807,1731025838126,-500.0,0.00027397,2]
[341607808,1731025838135,-500.0,0.00027397,2]
[341607809,1731025838145,-500.0,0.00027397,2]
[341607810,1731025838154,-500.0,0.00027397,2]
[341607811,1731025838163,-500.0,0.00027397,2]
[341607812,1731025838175,-500.0,0.00027397,2]
[341607813,1731025838184,-500.0,0.00027397,2]
[341607814,1731025838193,-500.0,0.00027397,2]
[341607815,1731025838202,-334.2747622,0.00027397,2]
[341607816,1731025838211,-500.0,0.00027397,2]
[341607817,1731025838230,-500.0,0.00027397,2]
[341607818,1731025838239,-500.0,0.00027397,2]
[341607819,1731025838248,-583.2,0.00027397,2]
[341607820,1731025838257,-500.0,0.00027397,2]
[341607821,1731025838266,-570.35,0.00027397,2]
[341607822,1731025838275,-522.68,0.00027397,2]
[341607823,1731025838284,-1066.05,0.00027397,2]
[341607824,1731025838294,-275.93356561,0.00027397,2]
[341607825,1731025838303,-500.0,0.00027397,2]
[341607826,1731025838315,-500.0,0.00027397,2]
[341607827,1731025838324,-500.0,0.00027397,2]
[341607828,1731025838333,-500.0,0.00027397,2]
[341607829,1731025838342,-500.0,0.00027397,2]
[341607830,1731025838351,-597.14522675,0.00027397,2]
[341607831,1731025838361,-601.1,0.00027397,2]
[341607832,1731025838370,-500.0,0.00027397,2]
[341607833,1731025838379,-500.0,0.00027397,2]
[341607834,1731025838389,-1303.48,0.00027397,2]
[341607836,1731025838404,-500.0,0.00027397,2]
[341607837,1731025838413,-500.0,0.00027397,2]
[341607838,1731025838425,-500.0,0.00027397,2]
[341607839,1731025838434,-1190.94,0.00027397,2]
[341607840,1731025838443,-500.0,0.00027397,2]
[341607841,1731025838452,-500.0,0.00027397,2]
[341607842,1731025838462,-567.53,0.00027397,2]
[341607843,1731025838470,-160.0285236,0.00027397,2]
[341607844,1731025838479,-500.0,0.00027397,2]
[341607845,1731025838488,-500.0,0.00027397,2]
[341607846,1731025838497,-500.0,0.00027397,2]
[341607847,1731025838506,-519.23,0.00027397,2]
[341607848,1731025838515,-500.0,0.00027397,2]
[341607850,1731025838524,-500.0,0.00027397,2]
[341607852,1731025838533,-500.0,0.00027397,2]
[341607854,1731025838543,-500.0,0.00027397,2]
[341607856,1731025838552,-244.96,0.00027397,2]
[341607858,1731025838561,-500.0,0.00027397,2]
[341607860,1731025838571,-500.0,0.00027397,2]
[341607862,1731025838582,-500.0,0.00027397,2]
[341607864,1731025838593,-500.0,0.00027397,2]
[341607866,1731025838603,-500.0,0.00027397,2]
[341607868,1731025838613,-500.0,0.00027397,2]
[341607870,1731025838624,-500.0,0.00027397,2]
[341607872,1731025838634,-649.31,0.00027397,2]
[341607873,1731025838645,-531.35,0.00027397,2]
[341607874,1731025838655,-500.0,0.00027397,2]
[341607875,1731025838665,-500.0,0.00027397,2]
[341607876,1731025838677,-559.57,0.00027397,2]
[341607877,1731025838686,-500.0,0.00027397,2]
[341607878,1731025838695,-500.0,0.00027397,2]
[341607879,1731025838704,-177.415875,0.00027397,2]
[341607880,1731025838713,-500.0,0.00027397,2]
[341607881,1731025838722,-500.0,0.00027397,2]
[341607882,1731025838731,-501.56,0.00027397,2]
[341607883,1731025838740,-500.0,0.00027397,2]
[341607884,1731025838749,-500.0,0.00027397,2]
[341607885,1731025838758,-500.0,0.00027397,2]
[341607886,1731025838766,-500.0,0.00027397,2]
[341607887,1731025838775,-684.19,0.00027397,2]
[341607888,1731025838784,-500.0,0.00027397,2]
[341607889,1731025838793,-500.0,0.00027397,2]
[341607890,1731025838802,-500.0,0.00027397,2]
[341607891,1731025838811,-1289.78,0.00027397,2]
[341607892,1731025838820,-500.0,0.00027397,2]
[341607893,1731025838829,-153.008708,0.00027397,2]
[341607894,1731025838838,-500.0,0.00027397,2]
[341607895,1731025838847,-679.9,0.00027397,2]
[341607896,1731025838856,-500.0,0.00027397,2]
[341607897,1731025838864,-500.0,0.00027397,2]
[341607898,1731025838873,-500.0,0.00027397,2]
[341607899,1731025838883,-509.64,0.00027397,2]
[341607900,1731025838892,-500.0,0.00027397,2]
[341607901,1731025838901,-500.0,0.00027397,2]
[341607902,1731025838910,-500.0,0.00027397,2]
[341607903,1731025838922,-500.0,0.00027397,2]
[341607904,1731025838931,-500.0,0.00027397,2]
[341607905,1731025838939,-500.0,0.00027397,2]
[341607906,1731025838948,-500.0,0.00027397,2]
[341607907,1731025838957,-736.52,0.00027397,2]
[341607908,1731025838967,-522.03,0.00027397,2]
[341607909,1731025838975,-500.0,0.00027397,2]
[341607910,1731025838985,-500.0,0.00027397,2]
[341607911,1731025838995,-500.0,0.00027397,2]
[341607912,1731025839004,-500.0,0.00027397,2]
[341607913,1731025839014,-500.0,0.00027397,2]
[341607914,1731025839023,-500.0,0.00027397,2]
[341607915,1731025839032,-500.0,0.00027397,2]
[341607916,1731025839042,-500.0,0.00027397,2]
[341607917,1731025839051,-500.0,0.00027397,2]
[341607918,1731025839060,-500.0,0.00027397,2]
[341607919,1731025839070,-419.41222502,0.00027397,2]
[341607920,1731025839079,-500.0,0.00027397,2]
[341607921,1731025839088,-500.0,0.00027397,2]
[341607922,1731025839099,-1423.37,0.00027397,2]
[341607923,1731025839108,-602.18,0.00027397,2]
[341607924,1731025839118,-500.0,0.00027397,2]
[341607925,1731025839127,-689.51,0.00027397,2]
[341607926,1731025839136,-500.0,0.00027397,2]
[341607927,1731025839146,-539.7,0.00027397,2]
[341607928,1731025839155,-500.0,0.00027397,2]
[341607929,1731025839165,-500.0,0.00027397,2]
[341607930,1731025839176,-686.96,0.00027397,2]
[341607931,1731025839185,-500.0,0.00027397,2]
[341607932,1731025839194,-500.0,0.00027397,2]
[341607933,1731025839204,-500.0,0.00027397,2]
[341607934,1731025839213,-500.0,0.00027397,2]
[341607935,1731025839222,-584.83,0.00027397,2]
[341607936,1731025839232,-653.11,0.00027397,2]
[341607937,1731025839250,-500.0,0.00027397,2]
[341607938,1731025839259,-520.35,0.00027397,2]
[341607939,1731025839268,-300.0,0.00027397,2]
[341607940,1731025839278,-681.59,0.00027397,2]
[341607941,1731025839288,-500.0,0.00027397,2]
[341607942,1731025839297,-500.0,0.00027397,2]
[341607943,1731025839306,-500.0,0.00027397,2]
[341607944,1731025839320,-500.0,0.00027397,2]
[341607945,1731025839329,-635.71,0.00027397,2]
[341607946,1731025839338,-319.49,0.00027397,2]
[341607947,1731025839347,-500.0,0.00027397,2]
[341607948,1731025839357,-500.0,0.00027397,2]
[341607949,1731025839367,-500.0,0.00027397,2]
[341607950,1731025839376,-500.0,0.00027397,2]
[341607951,1731025839385,-509.86629605,0.00027397,2]
[341607952,1731025839396,-815.16,0.00027397,2]
[341607953,1731025839405,-500.0,0.00027397,2]
[341607954,1731025839414,-510.63205821,0.00027397,2]
[341607955,1731025839427,-500.0,0.00027397,2]
[341607956,1731025839436,-569.84,0.00027397,2]
[341607957,1731025839446,-500.0,0.00027397,2]
[341607958,1731025839455,-595.71,0.00027397,2]
[341607959,1731025839464,-500.0,0.00027397,2]
[341607960,1731025839474,-886.29,0.00027397,2]
[341607961,1731025839483,-504.05216709,0.00027397,2]
[341607962,1731025839493,-500.0,0.00027397,2]
[341607963,1731025839501,-500.0,0.00027397,2]
[341607964,1731025839510,-500.0,0.00027397,2]
[341607965,1731025839519,-500.0,0.00027397,2]
[341607966,1731025839529,-500.0,0.00027397,2]
[341607967,1731025839538,-546.55,0.00027397,2]
[341607968,1731025839547,-500.0,0.00027397,2]
[341607969,1731025839556,-500.0,0.00027397,2]
[341607970,1731025839565,-2657.25,0.00027397,2]
[341607971,1731025839574,-500.0,0.00027397,2]
[341607972,1731025839583,-500.0,0.00027397,2]
[341607973,1731025839592,-500.0,0.00027397,2]
[341607974,1731025839601,-500.0,0.00027397,2]
[341607975,1731025839610,-500.0,0.00027397,2]
[341607976,1731025839619,-549.73,0.00027397,2]
[341607977,1731025839628,-500.0,0.00027397,2]
[341607978,1731025839637,-500.0,0.00027397,2]
[341607979,1731025839647,-500.0,0.00027397,2]
[341607980,1731025839656,-500.0,0.00027397,2]
[341607981,1731025839665,-471.69791133,0.00027397,2]
[341607982,1731025839681,-500.0,0.00027397,2]
[341607983,1731025839691,-548.55,0.00027397,2]
[341607984,1731025839700,-722.05,0.00027397,2]
[341607986,1731025839709,-786.83,0.00027397,2]
[341607988,1731025839719,-503.82688017,0.00027397,2]
[341607990,1731025839728,-647.64,0.00027397,2]
[341607992,1731025839738,-842.31,0.00027397,2]
[341607994,1731025839747,-500.0,0.00027397,2]
[341607996,1731025839756,-500.0,0.00027397,2]
[341607998,1731025839765,-500.0,0.00027397,2]
[341608001,1731025839773,-500.0,0.00027397,2]
[341608002,1731025839782,-500.0,0.00027397,2]
[341608003,1731025839791,-500.0,0.00027397,2]
[341608004,1731025839800,-500.0,0.00027397,2]
[341608005,1731025839808,-500.0,0.00027397,2]
[341608006,1731025839817,-500.0,0.00027397,2]
[341608007,1731025839826,-500.0,0.00027397,2]
[341608008,1731025839835,-500.0,0.00027397,2]
[341608009,1731025839844,-625.6,0.00027397,2]
[341608010,1731025839853,-774.47,0.00027397,2]
[341608011,1731025839862,-550.08,0.00027397,2]
[341608012,1731025839871,-500.0,0.00027397,2]
[341608013,1731025839880,-500.0,0.00027397,2]
[341608014,1731025839889,-500.0,0.00027397,2]
[341608015,1731025839898,-500.0,0.00027397,2]
[341608016,1731025839907,-500.0,0.00027397,2]
[341608017,1731025839917,-500.0,0.00027397,2]
[341608018,1731025839928,-686.89,0.00027397,2]
[341608019,1731025839937,-500.0,0.00027397,2]
[341608020,1731025839946,-500.0,0.00027397,2]
[341608021,1731025839955,-500.0,0.00027397,2]
[341608022,1731025839964,-500.0,0.00027397,2]
[341608023,1731025839973,-500.0,0.00027397,2]
[341608024,1731025839982,-500.0,0.00027397,2]
[341608025,1731025839991,-500.0,0.00027397,2]
[341608026,1731025840000,-500.0,0.00027397,2]
[341608027,1731025840009,-1057.69,0.00027397,2]
[341608028,1731025840019,-500.0,0.00027397,2]
[341608029,1731025840028,-535.45,0.00027397,2]
[341608030,1731025840037,-580.68,0.00027397,2]
[341608031,1731025840046,-500.0,0.00027397,2]
[341608032,1731025840055,-500.0,0.00027397,2]
[341608033,1731025840064,-500.0,0.00027397,2]
[341608034,1731025840073,-500.0,0.00027397,2]
[341608035,1731025840082,-500.0,0.00027397,2]
[341608036,1731025840091,-457.24423731,0.00027397,2]
[341608037,1731025840100,-815.12,0.00027397,2]
[341608038,1731025840110,-500.0,0.00027397,2]
[341608039,1731025840119,-500.0,0.00027397,2]
[341608040,1731025840128,-500.0,0.00027397,2]
[341608041,1731025840138,-500.0,0.00027397,2]
[341608042,1731025840148,-500.0,0.00027397,2]
[341608043,1731025840158,-231.69337015,0.00027397,2]
[341608044,1731025840167,-500.0,0.00027397,2]
[341608045,1731025840177,-650.04,0.00027397,2]
[341608046,1731025840186,-500.0,0.00027397,2]
[341608047,1731025840195,-500.0,0.00027397,2]
[341608048,1731025840204,-274.88,0.00027397,2]
[341608049,1731025840213,-500.0,0.00027397,2]
[341608050,1731025840222,-500.0,0.00027397,2]
[341608051,1731025840231,-651.08,0.00027397,2]
[341608052,1731025840240,-529.27,0.00027397,2]
[341608053,1731025840249,-500.0,0.00027397,2]
[341608054,1731025840258,-500.0,0.00027397,2]
[341608055,1731025840267,-500.0,0.00027397,2]
[341608056,1731025840277,-1252.66,0.00027397,2]
[341608057,1731025840286,-229.10746106,0.00027397,2]
[341608058,1731025840295,-500.0,0.00027397,2]
[341608059,1731025840304,-500.0,0.00027397,2]
[341608060,1731025840315,-762.42,0.00027397,2]
[341608061,1731025840324,-500.0,0.00027397,2]
[341608062,1731025840333,-518.92,0.00027397,2]
[341608063,1731025840342,-500.0,0.00027397,2]
[341608064,1731025840351,-500.0,0.00027397,2]
[341608065,1731025840362,-276.16770306,0.00027397,2]
[341608066,1731025840371,-1389.65,0.00027397,2]
[341608067,1731025840380,-500.0,0.00027397,2]
[341608068,1731025840390,-633.23,0.00027397,2]
[341608069,1731025840399,-535.57,0.00027397,2]
[341608070,1731025840409,-500.0,0.00027397,2]
[341608071,1731025840418,-500.0,0.00027397,2]
[341608072,1731025840428,-582.72399385,0.00027397,2]
[341608073,1731025840437,-500.0,0.00027397,2]
[341608074,1731025840446,-500.0,0.00027397,2]
[341608075,1731025840455,-656.85,0.00027397,2]
[341608076,1731025840463,-500.0,0.00027397,2]
[341608077,1731025840472,-500.0,0.00027397,2]
[341608078,1731025840481,-500.0,0.00027397,2]
[341608079,1731025840490,-500.0,0.00027397,2]
[341608080,1731025840500,-485.52,0.00027397,2]
[341608081,1731025840509,-500.0,0.00027397,2]
[341608082,1731025840518,-620.56,0.00027397,2]
[341608083,1731025840527,-579.52447233,0.00027397,2]
[341608084,1731025840536,-500.0,0.00027397,2]
[341608085,1731025840545,-500.0,0.00027397,2]
[341608086,1731025840554,-778.38,0.00027397,2]
[341608087,1731025840563,-500.0,0.00027397,2]
[341608088,1731025840572,-500.0,0.00027397,2]
[341608089,1731025840580,-500.0,0.00027397,2]
[341608090,1731025840589,-500.0,0.00027397,2]
[341608091,1731025840598,-500.0,0.00027397,2]
[341608092,1731025840607,-1120.92,0.00027397,2]
[341608093,1731025840616,-537.85,0.00027397,2]
[341608094,1731025840625,-688.98,0.00027397,2]
[341608095,1731025840634,-500.0,0.00027397,2]
[341608096,1731025840644,-927.88,0.00027397,2]
[341608097,1731025840655,-500.0,0.00027397,2]
[341608098,1731025840664,-500.0,0.00027397,2]
[341608099,1731025840674,-500.0,0.00027397,2]
[341608100,1731025840683,-500.0,0.00027397,2]
[341608101,1731025840692,-535.46,0.00027397,2]
[341608102,1731025840700,-500.0,0.00027397,2]
[341608103,1731025840709,-500.0,0.00027397,2]
[341608104,1731025840719,-624.45,0.00027397,2]
[341608105,1731025840729,-768.64,0.00027397,2]
[341608106,1731025840737,-523.78,0.00027397,2]
[341608107,1731025840747,-611.32875837,0.00027397,2]
[341608108,1731025840755,-620.58,0.00027397,2]
[341608109,1731025840765,-500.0,0.00027397,2]
[341608110,1731025840774,-500.0,0.00027397,2]
[341608111,1731025840783,-500.0,0.00027397,2]
[341608112,1731025840793,-500.0,0.00027397,2]
[341608113,1731025840802,-500.0,0.00027397,2]
[341608114,1731025840811,-500.0,0.00027397,2]
[341608115,1731025840820,-500.0,0.00027397,2]
[341608116,1731025840829,-500.0,0.00027397,2]
[341608117,1731025840839,-500.0,0.00027397,2]
[341608118,1731025840847,-617.08,0.00027397,2]
[341608119,1731025840856,-500.0,0.00027397,2]
[341608120,1731025840866,-500.0,0.00027397,2]
[341608121,1731025840875,-500.0,0.00027397,2]
[341608122,1731025840884,-500.0,0.00027397,2]
[341608123,1731025840893,-500.0,0.00027397,2]
[341608124,1731025840902,-942.57,0.00027397,2]
[341608125,1731025840911,-500.0,0.00027397,2]
[341608126,1731025840922,-500.0,0.00027397,2]
[341608127,1731025840931,-500.0,0.00027397,2]
[341608128,1731025840940,-500.0,0.00027397,2]
[341608129,1731025840949,-500.0,0.00027397,2]
[341608130,1731025840959,-500.0,0.00027397,2]
[341608131,1731025840968,-500.0,0.00027397,2]
[341608132,1731025840977,-500.0,0.00027397,2]
[341608133,1731025840986,-545.76,0.00027397,2]
[341608134,1731025840995,-500.0,0.00027397,2]
[341608135,1731025841004,-500.0,0.00027397,2]
[341608136,1731025841014,-500.0,0.00027397,2]
[341608137,1731025841023,-500.0,0.00027397,2]
[341608138,1731025841032,-801.94,0.00027397,2]
[341608139,1731025841042,-500.0,0.00027397,2]
[341608140,1731025841051,-527.97,0.00027397,2]
[341608141,1731025841061,-500.0,0.00027397,2]
[341608142,1731025841070,-500.0,0.00027397,2]
[341608143,1731025841079,-500.0,0.00027397,2]
[341608144,1731025841088,-500.0,0.00027397,2]
[341608145,1731025841097,-500.0,0.00027397,2]
[341608146,1731025841106,-500.0,0.00027397,2]
[341608147,1731025841115,-503.45,0.00027397,2]
[341608148,1731025841124,-500.0,0.00027397,2]
[341608149,1731025841133,-500.0,0.00027397,2]
[341608150,1731025841142,-303.45385366,0.00027397,2]
[341608151,1731025841151,-520.01,0.00027397,2]
[341608152,1731025841160,-675.26,0.00027397,2]
[341608153,1731025841169,-500.0,0.00027397,2]
[341608154,1731025841178,-1152.19,0.00027397,2]
[341608155,1731025841187,-625.31,0.00027397,2]
[341608156,1731025841197,-500.0,0.00027397,2]
[341608157,1731025841206,-500.0,0.00027397,2]
[341608158,1731025841215,-500.0,0.00027397,2]
[341608159,1731025841224,-500.0,0.00027397,2]
[341608160,1731025841233,-500.0,0.00027397,2]
[341608161,1731025841242,-500.0,0.00027397,2]
[341608162,1731025841251,-743.9,0.00027397,2]
[341608163,1731025841261,-500.0,0.00027397,2]
[341608164,1731025841270,-500.0,0.00027397,2]
[341608165,1731025841279,-500.0,0.00027397,2]
[341608166,1731025841288,-500.0,0.00027397,2]
[341608167,1731025841297,-606.02755133,0.00027397,2]
[341608168,1731025841306,-500.0,0.00027397,2]
[341608169,1731025841319,-500.0,0.00027397,2]
[341608170,1731025841328,-500.0,0.00027397,2]
[341608171,1731025841337,-500.0,0.00027397,2]
[341608172,1731025841346,-500.0,0.00027397,2]
[341608173,1731025841357,-764.53,0.00027397,2]
[341608174,1731025841366,-500.0,0.00027397,2]
[341608175,1731025841376,-500.0,0.00027397,2]
[341608176,1731025841385,-582.81,0.00027397,2]
[341608177,1731025841395,-500.0,0.00027397,2]
[341608178,1731025841405,-643.4,0.00027397,2]
[341608179,1731025841414,-500.0,0.00027397,2]
[341608180,1731025841425,-500.0,0.00027397,2]
[341608181,1731025841434,-1004.08,0.00027397,2]
[341608182,1731025841443,-500.0,0.00027397,2]
[341608183,1731025841453,-500.0,0.00027397,2]
[341608184,1731025841462,-527.47,0.00027397,2]
[341608185,1731025841471,-500.0,0.00027397,2]
[341608186,1731025841481,-700.31,0.00027397,2]
[341608187,1731025841630,-609.74,0.00027397,2]
[341608188,1731025841653,-500.0,0.00027397,2]
[341608189,1731025841662,-500.0,0.00027397,2]
[341608190,1731025841672,-1070.48,0.00027397,2]
[341608191,1731025841681,-500.0,0.00027397,2]